Cogmind - Beta 9.3 @@@ ROGUE MODE // 2019.12.23 @ 12:57:12 // Winter2019/RPGLIKE Player: octapi Result: Destroyed by Lightning with EMDS Performance ------------- Evolutions (7) 3500 Regions Visited (16) 3200 Robots Destroyed (346) 1730 Value Destroyed (15509) 15509 Prototype IDs (22) 440 Alien Tech Used (3) 600 Bonus (17129) 17129 TOTAL SCORE: 42108 Bonus ------- Triggered High Security 500 High Alert Combat Kills 7262 Follower Combat Kills 2767 Aligned with FarCom 300 Met Zhirov 300 Built Enhanced Grunts 300 A7 Reached Mainframe 300 Met R17 at Cetus 500 Read Decrypted Archives 300 Used Core Reset Matrix 3000 Scanned by Researcher 500 Met Sigix 2000 Friendly Fire -900 Cogmind --------- Core Integrity 0/2100 Matter 295/300 Energy 1567/1630 System Corruption 6% Temperature Cool (52) Movement Treading (180) Ox1 Location -3/Quarantine Parts ------- > --- POWER (3) -------- Particle Reactor Particle Reactor Quantum Reactor > --- PROPULSION (4) --- Centrium Heavy Treads > --- UTILITY (8) ------ Advanced Heat Sink Advanced Heat Sink Advanced Heat Sink Improved Energy Well Gravity Neutralizing Apparatus Advanced Signal Interpreter Weapon Cycler > --- WEAPON (4) ------- Nova Cannon Nova Cannon Nova Cannon Nova Cannon > --- INVENTORY (3) ---- Advanced Variable Charge Gun Sigix Containment Pod Peak State ------------ > --- POWER ------------ Particle Reactor Particle Reactor Quantum Reactor > --- PROPULSION ------- Heavy Siege Treads Centrium Heavy Treads > --- UTILITY ---------- Advanced Cryofiber Web Advanced Heat Sink Advanced Heat Sink Improved Energy Well Advanced Signal Interpreter Advanced Particle Charger Weapon Cycler Advanced Shield Generator > --- WEAPON ----------- Nova Cannon Nova Cannon Nova Cannon Nova Cannon > --- INVENTORY -------- Subatomic Replicator Advanced Variable Charge Gun Nova Cannon [Rating: 136] Favorites ----------- Power Improved Deuterium Engine Engine Improved Deuterium Engine Power Core Neutrino Core Reactor Quantum Reactor Propulsion Centrium Heavy Treads Treads Centrium Heavy Treads Leg Carbon-fiber Leg Wheel Wheel Flight Unit Flying Fortress v7 Utility Advanced Heat Sink Device Advanced Heat Sink Storage Improved Energy Well Processor Advanced Signal Interpreter Protection Light Armor Plating Weapon Advanced Variable Charge Gun Energy Gun Advanced Variable Charge Gun Energy Cannon Light EM Pulse Cannon Ballistic Gun Assault Rifle Launcher Shock Bomb Launcher Slashing Weapon Phasing Sabre Build | -11 -10 -10 -9 -9 -9 -8 -8 -7 -6 -6 -6 -6 -5 -4 -3 -3 ------- Run | Scr Mat Min Mat Min Exi Min Mat Fac Fac Ext Cet Arc Fac Fac Res Qua Slots Evolved 15 | 3 . . 3 5 . . . 1 . . 1 . . 1 . 1 Power 2 | . . . 1 1 . . . . . . . . . . . . Propulsion 3 | 1 . . 1 1 . . . . . . . . . . . . Utility 7 | 1 . . 1 3 . . . 1 . . . . . 1 . . Weapon 3 | 1 . . . . . . . . . . 1 . . . . 1 Parts Attached 160 | 5 3 6 18 14 5 . 2 5 1 22 19 2 8 16 11 23 Power 19 | 1 . 1 3 1 . . 1 3 . 2 1 . . 3 1 2 Engine 12 | 1 . 1 3 1 . . 1 3 . 2 . . . . . . Core 3 | . . . . . . . . . . . . . . 3 . . Reactor 4 | . . . . . . . . . . . 1 . . . 1 2 Propulsion 20 | 2 2 2 2 2 1 . . . . 6 2 . . 1 . . Treads 6 | . . . . . . . . . . 3 2 . . 1 . . Leg 9 | 2 . 2 2 2 . . . . . 1 . . . . . . Wheel 4 | . 2 . . . . . . . . 2 . . . . . . Hover . | . . . . . . . . . . . . . . . . . Flight 1 | . . . . . 1 . . . . . . . . . . . Utility 52 | . 1 1 2 4 3 . 1 2 1 4 6 . 4 7 4 12 Device 42 | . . 1 1 3 2 . 1 2 1 3 4 . 4 6 4 10 Storage 5 | . . . . 1 . . . . . . 1 . . 1 . 2 Processor 3 | . . . 1 . 1 . . . . 1 . . . . . . Hackware . | . . . . . . . . . . . . . . . . . Protection 2 | . 1 . . . . . . . . . 1 . . . . . Artifact . | . . . . . . . . . . . . . . . . . Weapon 69 | 2 . 2 11 7 1 . . . . 10 10 2 4 5 6 9 Energy Gun 16 | 1 . . 1 . . . . . . 3 5 1 1 2 . 2 Energy Cannon 27 | . . . 7 3 1 . . . . . 1 . 2 2 5 6 Ballistic Gun 5 | 1 . 1 . . . . . . . 2 1 . . . . . Ballistic Cannon . | . . . . . . . . . . . . . . . . . Launcher 14 | . . 1 3 2 . . . . . 2 2 . 1 1 1 1 Special Weapon . | . . . . . . . . . . . . . . . . . Impact Weapon . | . . . . . . . . . . . . . . . . . Slashing Weapon 7 | . . . . 2 . . . . . 3 1 1 . . . . Piercing Weapon . | . . . . . . . . . . . . . . . . . Special Melee Weapon . | . . . . . . . . . . . . . . . . . Unidentified Prototypes 18 | . . . 1 . 3 . . . . . 6 . . 1 2 5 Parts Lost 11 | . . . . . . . 1 . . 4 . . . 1 . 5 Power 2 | . . . . . . . 1 . . 1 . . . . . . Propulsion 2 | . . . . . . . . . . 1 . . . . . 1 Utility 5 | . . . . . . . . . . 1 . . . 1 . 3 Weapon 2 | . . . . . . . . . . 1 . . . . . 1 Highest Loss Streak 4 | . . . . . . . 1 . . 4 . . . 1 . 1 Average Slot Usage (%) 86 | . 77 94 84 96 87 73 72 73 74 82 89 88 87 86 83 87 Engine 12 | . 14 14 17 19 20 20 19 19 18 16 12 11 11 2 . . Core 1 | . . . . . . . . . . . . . . 7 6 . Reactor 3 | . . . . . . . . . . . 4 5 5 5 9 14 Treads 5 | . . . . . . . . . . 10 11 11 11 11 11 10 Leg 7 | . 15 17 18 25 15 . . . . . . . . . . . Wheel 1 | . 12 10 . . . . . . . 1 . . . . . . Device 23 | . . 8 13 20 24 26 26 26 30 27 29 29 29 31 28 29 Storage 3 | . . . . . 6 6 6 6 6 6 5 5 5 5 5 5 Processor 5 | . . . 10 9 7 6 6 6 6 6 5 5 5 5 5 5 Protection 1 | . 7 14 1 . . . . . . . . . . . . . Energy Gun 4 | . 14 14 . . . . . . . 3 11 6 10 6 4 . Energy Cannon 8 | . . . 21 15 9 6 6 6 6 1 . 5 4 7 11 18 Ballistic Gun 2 | . 14 13 . . . . . . . 2 1 . . . . . Naked Turns . | . . . . . . . . . . . . . . . . . Heaviest Build 122 | 9 12 17 27 41 51 51 51 58 60 60 78 78 79 111 103 122 Greatest Support 162 | 20 20 30 30 50 72 72 72 72 72 86 160 160 160 160 150 162 Greatest Overweight (x) 7 | . 1 1 5 1 . . . . . 7 . . . . . . Average Overweight (x) . | . . . . . . . . . . . . . . . . . Largest Inventory Capacity 3 | 2 2 2 2 2 2 2 2 2 2 2 2 2 2 3 3 3 Average Capacity 2 | 1 2 2 2 2 2 2 2 2 2 2 2 2 2 2 3 3 Most Carried 3 | 2 2 2 2 2 2 2 2 2 2 2 2 2 2 3 3 3 Average Carried 2 | 1 1 1 2 1 2 2 2 2 2 1 1 2 2 1 2 2 Final Capacity 3 | 2 2 2 2 2 2 2 2 2 2 2 2 2 2 3 3 3 Final Carried 3 | 2 1 2 2 2 2 2 2 2 2 2 2 2 2 2 3 3 Class Distribution -------------------- 43% | Scavenger-Mutant 21% | Scavenger-Gunner 15% | Generator-Gunner 8% | Mutant 4% | Scavenger-Scout 4% | Generator-Mutant Dominant Class ---------------- Mutant | -10/Materials Scavenger-Mutant | -10/Mines Scavenger-Mutant | -9/Materials Scavenger-Mutant | -9/Mines Scavenger-Mutant | -9/Exiles Scavenger-Scout | -8/Mines Scavenger-Scout | -8/Materials Scavenger-Mutant | -7/Factory Generator-Mutant | -6/Factory Scavenger-Mutant | -6/Extension Scavenger-Gunner | -6/Cetus Scavenger-Mutant | -6/Archives Scavenger-Gunner | -5/Factory Scavenger-Gunner | -4/Factory Generator-Gunner | -3/Research Generator-Gunner | -3/Quarantine Resources | -11 -10 -10 -9 -9 -9 -8 -8 -7 -6 -6 -6 -6 -5 -4 -3 -3 ----------- Run | Scr Mat Min Mat Min Exi Min Mat Fac Fac Ext Cet Arc Fac Fac Res Qua Matter Collected 2555 | 242 40 124 308 176 . 50 20 20 19 473 246 10 165 202 60 400 Remotely . | . . . . . . . . . . . . . . . . . Salvage Created 13977 | . 127 181 542 628 . 26 625 399 102 1278 170 37 2407 1843 1764 3848 Parts 721 | . 19 16 47 42 . 1 32 16 4 48 12 . 144 73 85 182 Haulers Intercepted 6 | . . . 2 . . . . 1 . 1 . . . 1 . 1 Recyclers Shooed 3 | . . . . . . . 1 . . 1 . . . . 1 . Parts Field Recycled . | . . . . . . . . . . . . . . . . . Retrieved Matter . | . . . . . . . . . . . . . . . . . Parts Self-Destructed . | . . . . . . . . . . . . . . . . . Prevented . | . . . . . . . . . . . . . . . . . Kills | -11 -10 -10 -9 -9 -9 -8 -8 -7 -6 -6 -6 -6 -5 -4 -3 -3 ------- Run | Scr Mat Min Mat Min Exi Min Mat Fac Fac Ext Cet Arc Fac Fac Res Qua Combat Hostiles Destroyed 266 | . 4 9 21 22 . 3 11 9 1 15 6 . 50 31 25 59 Melee 5 | . . . . 3 . . . . . . . . . 1 . 1 Guns 65 | . 4 6 . . . . . . . 9 5 . 25 10 6 . Cannons 134 | . . . 12 12 . . 5 . 1 . . . 19 16 14 55 AOE 49 | . . 3 9 6 . 3 6 9 . 6 . . 3 2 1 1 Classes Destroyed 22 | . 4 1 2 2 . 1 2 . 1 3 . . 2 1 . 3 Worker 15 | . . . . . . . 1 2 . . . . 5 . 4 3 Builder 16 | . 2 . . 1 . . 1 . . . . . 4 . 8 . Tunneler 5 | . . . . 2 . . . . . 2 . . 1 . . . Hauler 6 | . . . 2 . . . . 1 . 1 . . . 1 . 1 Recycler 7 | . . 1 . . . . . . . 2 . . . 2 1 1 Carrier 1 | . . . . . . . . . . . . . . . . 1 Mechanic 3 | . . . . . . . . . . . . . . 1 . 2 Operator 5 | . . . . . . . . . 1 . . . . . 1 3 Watcher 17 | . 2 . 2 . . . 3 1 1 1 . . 3 1 1 2 Swarmer 61 | . 3 7 13 6 . 1 . . . . 5 . 4 10 5 7 Saboteur 3 | . . . . . . . . . . . . . 1 1 . 1 Grunt 108 | . 1 2 4 14 . 1 7 6 1 9 . . 24 6 1 32 Brawler 14 | . . . . . . . . . . 1 . . 5 2 2 4 Duelist 7 | . . . . . . 1 . . . . . . 2 3 1 . Protector 4 | . . . . . . . . . . . . . 2 1 . 1 Researcher 2 | . . . . . . . . . . . . . . . . 2 Sentry 24 | . . . 4 . . . 6 3 . 2 . . . 3 3 3 Specialist 2 | . . . . . . . . . . . . . . . . 2 Hunter 26 | . . . . . . . 1 . . 1 . . 8 2 10 4 Programmer 14 | . . . . . . . . . . 1 . . 3 2 3 5 Behemoth 3 | . . . . . . . . . . 1 . . 1 1 . . Cetus Guard 1 | . . . . . . . . . . . 1 . . . . . Assembled 2 | . . . . 2 . . . . . . . . . . . . Best Kill Streak 19 | . 4 3 11 4 . 3 7 6 2 7 5 . 19 8 18 16 Combat Bots Only 15 | . 3 3 9 4 . 3 5 4 1 6 5 . 13 6 10 15 Max Kills in Single Turn 4 | . 2 2 4 2 . 2 3 3 1 2 2 . 2 2 2 2 Gunslinging 1 | . . . . . . . . . . . 1 . . . . . Exploded 3 | . . 2 3 1 . 2 2 3 . 2 . . 1 1 1 1 Melee 1 | . . . . 1 . . . . . . . . . 1 . 1 Uniques/NPCs Destroyed . | . . . . . . . . . . . . . . . . . Combat | -11 -10 -10 -9 -9 -9 -8 -8 -7 -6 -6 -6 -6 -5 -4 -3 -3 -------- Run | Scr Mat Min Mat Min Exi Min Mat Fac Fac Ext Cet Arc Fac Fac Res Qua Damage Taken 12744 | . 91 225 504 1075 . 108 177 128 65 446 151 832 1332 1514 2174 3922 Core 10101 | . 73 177 404 865 . 82 138 99 49 348 115 668 1033 1225 1724 3101 Absorbed by Shields 4399 | . . . . . . 29 53 39 67 468 158 331 1394 836 439 585 Reduced by Siege Mode 29 | . . . . . . . . . . . . . . 29 . . Redirected to Core 8787 | . 63 151 356 704 . 82 129 99 49 314 115 606 897 995 1559 2668 Core Remaining (%) 79 | 100 . 93 . . . 71 74 83 . . . 44 83 84 . . Volleys Fired 548 | . 10 21 36 38 . 3 17 15 6 60 7 2 108 62 65 98 Largest 4 | . 2 2 2 2 . 1 1 1 1 2 3 2 3 3 3 4 Hottest 452 | . 60 70 112 112 . 100 100 100 100 109 197 240 250 280 288 452 Shots Fired 1346 | . 20 42 66 70 . 3 17 15 6 87 21 3 283 156 194 363 Gun 435 | . 20 39 . . . . . . . 67 17 2 162 61 59 8 Cannon 838 | . . . 58 66 . 3 17 15 6 8 . 1 106 85 129 344 Launcher 73 | . . 3 8 4 . . . . . 12 4 . 15 10 6 11 Special . | . . . . . . . . . . . . . . . . . Kinetic 80 | . 10 18 . . . . . . . 49 3 . . . . . Thermal 1038 | . . . . . . 3 17 15 6 26 14 3 268 146 188 352 Explosive 15 | . . 3 8 4 . . . . . . . . . . . . Electromagnetic 213 | . 10 21 58 66 . . . . . 12 4 . 15 10 6 11 Robot Hit Streak 39 | . 3 10 12 6 . 2 5 2 1 24 29 10 25 26 39 24 Robot Miss Streak 4 | . 4 3 3 3 . 1 1 3 . 2 1 . 3 2 1 2 Penetration Max 1 | . . . . . . . . . . 1 . . . . . . Secondary Targets 6 | . . 2 . . . . . . . 1 3 . . . . . Max Gunslinging Chain 2 | . . 1 . . . . . . . 1 2 . . . . . Shots Hit Robots 907 | . 7 27 43 50 . 2 7 3 1 77 19 5 202 119 140 205 Core Hits 535 | . 8 12 35 29 . 3 19 16 3 53 17 1 104 67 57 111 Critical Hits 27 | . . . . 2 . . 3 1 . 2 1 . 4 6 2 6 Critical Kills 10 | . . . . 2 . . 2 . . 1 1 . 1 . . 3 Critical Parts Destroyed 17 | . . . . . . . 1 1 . 1 . . 3 6 2 3 Melee Attacks 57 | . . . . 36 . . . . . 13 6 2 . . . . Impact . | . . . . . . . . . . . . . . . . . Slashing 57 | . . . . 36 . . . . . 13 6 2 . . . . Piercing . | . . . . . . . . . . . . . . . . . Sneak Attacks 3 | . . . . 1 . . . . . 2 . . . . . . Combat Hostiles . | . . . . . . . . . . . . . . . . . Follow-up Attacks . | . . . . . . . . . . . . . . . . . Damage Inflicted 52638 | . 187 516 1639 1842 . 778 2363 2032 645 4341 697 550 10796 6748 7514 11990 Guns 12613 | . 162 337 . . . . . . . 1480 432 172 5352 2168 2286 224 Cannons 28029 | . . . 831 777 . 219 985 617 330 646 . 56 4075 3668 4729 11096 Explosions 10915 | . 25 175 808 639 . 559 1378 1415 315 1999 265 . 1369 902 396 670 Melee 961 | . . . . 423 . . . . . 216 . 322 . . . . Ramming 120 | . . 4 . 3 . . . . . . . . . 10 103 . Kinetic 1279 | . 50 135 . . . . . . . 1049 45 . . . . . Thermal 43827 | . 25 . . 311 . 778 2363 2032 645 2459 387 228 9696 6216 7097 11590 Explosive 1311 | . . 175 808 328 . . . . . . . . . . . . Electromagnetic 5140 | . 112 202 831 777 . . . . . 617 265 . 1100 522 314 400 Impact . | . . . . . . . . . . . . . . . . . Slashing 961 | . . . . 423 . . . . . 216 . 322 . . . . Piercing . | . . . . . . . . . . . . . . . . . Highest Corruption 6 | . . . 2 2 2 2 . 1 . . . . 3 1 1 6 Average Corruption 1 | . . . 2 2 2 2 . 1 . . . . 2 1 1 1 Corruption Purged . | . . . . . . . . . . . . . . . . . Effects 38 | . . . 1 18 4 4 . . . . . . . . 3 8 Message Errors 11 | . . . . 7 1 2 . . . . . . . . . 1 Heat Flow Errors 3 | . . . 1 1 . 1 . . . . . . . . . . Energy Discharges 5 | . . . . 2 2 1 . . . . . . . . . . Data Loss (minor) 7 | . . . . 3 1 . . . . . . . . . . 3 Targeting Errors 11 | . . . . 5 . . . . . . . . . . 2 4 Weapon Failures 1 | . . . . . . . . . . . . . . . 1 . Overload Shots 2 | . . . . . . . . . . . . 1 . . . 1 Overflow Damage 2312 | . . 22 8 111 . 88 88 183 19 236 5 82 342 170 340 618 Projectiles 1496 | . . . . 7 . 29 28 80 . 112 . . 274 140 275 551 Explosions 631 | . . 22 8 14 . 59 60 103 19 124 5 . 68 30 52 67 Melee 185 | . . . . 90 . . . . . . . 82 . . 13 . Knockbacks 1 | . . . . . . . . . . . . . . . 1 . Impact 1 | . . . . . . . . . . . . . . . 1 . Kinetic . | . . . . . . . . . . . . . . . . . Secondary . | . . . . . . . . . . . . . . . . . Self-Inflicted Damage 907 | . 30 . 24 8 . 63 81 . 116 96 . . 262 100 127 . Shots 20 | . 1 . 1 1 . 1 1 . 2 2 . . 4 4 3 . Rammed 6 | . . . . 1 . . . . . . . . . 1 4 . Targets Rammed 7 | . . 1 . 1 . . . . . . . . . 1 4 . Kicked 1 | . . 1 . . . . . . . . . . . . . . Crushed . | . . . . . . . . . . . . . . . . . Highest Temperature 462 | . 12 45 262 390 . 268 13 18 . 14 107 206 362 116 126 462 Average Temperature 84 | . 7 13 42 132 . 119 4 9 . 14 49 84 52 29 47 178 Received Heat Transfer 1853 | . . 54 105 297 . 7 28 7 4 103 20 . 217 179 126 706 Effects 16 | . . . . 6 . . . . . . . . 3 . . 7 Shutdowns 4 | . . . . 1 . . . . . . . . . . . 3 Energy Bleed 3 | . . . . 1 . . . . . . . . . . . 2 Interference 8 | . . . . 3 . . . . . . . . 3 . . 2 Damage (minor) 1 | . . . . 1 . . . . . . . . . . . . Siege Activations 1 | . . . . . . . . . . . . . . 1 . . Total Turns 37 | . . . . . . . . . . . . . . 37 . . Longest Duration 37 | . . . . . . . . . . . . . . 37 . . Robots Corrupted 8 | . . . 1 1 . . . . . . . . 3 2 1 . Combat Hostiles 7 | . . . . 1 . . . . . . . . 3 2 1 . Parts Fried 17 | . . . 3 5 . . . . . 1 1 . 3 2 2 . Impact Corruptions 1 | . . . . . . . . . . . . . . . 1 . Robots Melted 4 | . . . . . . . . . . . . . . . 3 1 Combat Hostiles 4 | . . . . . . . . . . . . . . . 3 1 Parts Melted 58 | . . . . 1 . 2 5 2 1 2 1 . 10 2 14 18 Heat Transferred 30520 | . 50 . . 400 . 640 2260 1510 400 2304 544 112 6422 3511 4739 7628 Parts Sabotaged 6 | . . . . . . . . . . . . . . 2 2 2 Parts Stolen . | . . . . . . . . . . . . . . . . . Parts Stripped . | . . . . . . . . . . . . . . . . . Power Chain Reactions 17 | . 1 . . 1 . . . . . 2 . . 5 2 4 2 Missiles Intercepted . | . . . . . . . . . . . . . . . . . Alert | -11 -10 -10 -9 -9 -9 -8 -8 -7 -6 -6 -6 -6 -5 -4 -3 -3 ------- Run | Scr Mat Min Mat Min Exi Min Mat Fac Fac Ext Cet Arc Fac Fac Res Qua Peak Influence 2283 | . 203 143 550 401 . 182 675 880 586 1224 1180 856 1882 1658 1072 2283 Average Influence 669 | . 113 62 340 246 . 115 439 539 479 774 994 690 1056 1261 639 1262 Maximum Alert Level 5 | . 1 . 2 2 . . 2 3 2 4 4 3 5 5 3 5 Low Security (%) 19 | 100 89 100 25 11 . 100 19 . . . . . . . . . Level 1 18 | . 10 . 24 82 . . 22 42 30 7 . . 18 . . . Level 2 20 | . . . 49 6 . . 57 26 69 36 5 24 16 . 66 18 Level 3 19 | . . . . . . . . 31 . 39 54 75 12 34 33 23 Level 4 16 | . . . . . . . . . . 16 39 . 35 60 . 32 Level 5 2 | . . . . . . . . . . . . . 17 4 . 2 High Security 2 | . . . . . . . . . . . . . . . . 23 Max Security . | . . . . . . . . . . . . . . . . . Squads Dispatched 57 | . 1 . 2 2 . . . 2 1 4 . . 13 8 6 18 Investigation 4 | . . . . . . . . 1 . 1 . . 1 . 1 . Extermination 4 | . . . . . . . . . . . . . 1 1 1 1 Reinforcement 23 | . 1 . 2 1 . . . 1 1 3 . . 4 2 2 6 Assault 24 | . . . . 1 . . . . . . . . 5 5 2 11 Garrison 2 | . . . . . . . . . . . . . 2 . . . Intercept . | . . . . . . . . . . . . . . . . . Construction Impeded 10 | . . . . 1 . . . . . 2 . . 3 1 2 1 Haulers Reinforced 3 | . . . . . . . . 1 1 . . . . . . 1 Stealth | -11 -10 -10 -9 -9 -9 -8 -8 -7 -6 -6 -6 -6 -5 -4 -3 -3 --------- Run | Scr Mat Min Mat Min Exi Min Mat Fac Fac Ext Cet Arc Fac Fac Res Qua Distress Signals 17 | . 1 1 2 2 . . 3 . . 2 2 . . 1 2 1 Communications Jammed . | . . . . . . . . . . . . . . . . . Distress Signals . | . . . . . . . . . . . . . . . . . Times Spotted 437 | . 9 13 30 30 . 6 10 3 3 39 18 25 74 56 35 86 Peak Tracking Total 17 | . 4 3 6 5 . 6 4 2 2 5 5 15 10 10 6 17 Tactical Retreats 22 | . . 1 . 2 . . . 1 . 1 . 1 9 1 . 6 Traps | -11 -10 -10 -9 -9 -9 -8 -8 -7 -6 -6 -6 -6 -5 -4 -3 -3 ------- Run | Scr Mat Min Mat Min Exi Min Mat Fac Fac Ext Cet Arc Fac Fac Res Qua Traps Triggered 12 | . 1 . 3 . . . . 4 . . . . 3 1 . . Indirectly 1 | . . . . . . . . . . . . . 1 . . . Trap Hack Attempts . | . . . . . . . . . . . . . . . . . Triggered . | . . . . . . . . . . . . . . . . . Disarmed . | . . . . . . . . . . . . . . . . . Reprogrammed . | . . . . . . . . . . . . . . . . . Reused 1 | . . . . 1 . . . . . . . . . . . . Traps Extracted . | . . . . . . . . . . . . . . . . . Installed 2 | . . . . 2 . . . . . . . . . . . . Triggered 1 | . . . . 1 . . . . . . . . . . . . Machines | -11 -10 -10 -9 -9 -9 -8 -8 -7 -6 -6 -6 -6 -5 -4 -3 -3 ---------- Run | Scr Mat Min Mat Min Exi Min Mat Fac Fac Ext Cet Arc Fac Fac Res Qua Machines Disabled 89 | . 1 1 5 2 . . 2 18 7 6 1 1 27 4 . 14 Max in Single Turn 6 | . 1 1 2 2 . . 1 2 4 1 . . 6 3 . 3 Garrison Access 3 | . . . . . . . . 1 . . . . 1 . . 1 Machines Sabotaged . | . . . . . . . . . . . . . . . . . Garrisons Compromised . | . . . . . . . . . . . . . . . . . Overloaded Fab Kills . | . . . . . . . . . . . . . . . . . Fab Network Shutdowns . | . . . . . . . . . . . . . . . . . Hacking | -11 -10 -10 -9 -9 -9 -8 -8 -7 -6 -6 -6 -6 -5 -4 -3 -3 --------- Run | Scr Mat Min Mat Min Exi Min Mat Fac Fac Ext Cet Arc Fac Fac Res Qua Machines Accessed 37 | . 5 . 4 . 3 1 . 3 . 9 3 1 1 1 3 3 Terminals 31 | . 5 . 4 . . 1 . 2 . 9 3 . 1 1 2 3 Fabricators . | . . . . . . . . . . . . . . . . . Repair Stations . | . . . . . . . . . . . . . . . . . Recycling Units . | . . . . . . . . . . . . . . . . . Scanalyzers . | . . . . . . . . . . . . . . . . . Garrison Access 2 | . . . . . . . . 1 . . . . . . 1 . Total Hacks 118 | . 10 . 8 . 25 1 . 8 . 18 5 25 4 1 8 5 Successful 89 | . 8 . 4 . 25 1 . 4 . 10 3 25 2 . 4 3 Failed 29 | . 2 . 4 . . . . 4 . 8 2 . 2 1 4 2 Catastrophic 4 | . . . 2 . . . . 1 . . . . . 1 . . Database Lockouts . | . . . . . . . . . . . . . . . . . Manual 18 | . 4 . 2 . 1 . 2 2 . 5 1 . . 1 . . Terminals 65 | . 10 . 8 . . 1 . 7 . 18 5 . 4 1 6 5 Fabricators . | . . . . . . . . . . . . . . . . . Repair Stations . | . . . . . . . . . . . . . . . . . Recycling Units . | . . . . . . . . . . . . . . . . . Scanalyzers . | . . . . . . . . . . . . . . . . . Garrison Access 3 | . . . . . . . . 1 . . . . . . 2 . Terminal Hacks 86 | . 7 . 3 . 25 1 . 3 . 10 3 25 2 . 4 3 Record 55 | . . . . . 25 1 . 1 . . 2 25 . . . 1 Robot Analysis 2 | . 1 . . . . . . . . . . . . . . 1 Prototype ID Bank 3 | . 1 . 1 . . . . 1 . . . . . . . . Open Door 8 | . . . . . . . . . . 7 1 . . . . . Branch Access Points 3 | . . . 1 . . . . . . . . . . . 1 1 Emergency Access Points 1 | . 1 . . . . . . . . . . . . . . . Terminal Index 1 | . 1 . . . . . . . . . . . . . . . Alert Level 2 | . 1 . . . . . . . . 1 . . . . . . Unreport Threat 5 | . . . . . . . . 1 . 1 . . . . 3 . Locate Traps 2 | . . . 1 . . . . . . . . . 1 . . . Registered Components 1 | . 1 . . . . . . . . . . . . . . . Zone Layout 3 | . 1 . . . . . . . . 1 . . 1 . . . Fabricator Hacks . | . . . . . . . . . . . . . . . . . Repair Station Hacks . | . . . . . . . . . . . . . . . . . Recycling Unit Hacks . | . . . . . . . . . . . . . . . . . Scanalyzer . | . . . . . . . . . . . . . . . . . Garrison Access Hacks 1 | . . . . . . . . 1 . . . . . . . . Seal Access 1 | . . . . . . . . 1 . . . . . . . . Unauthorized Hacks 4 | . 2 . 2 . . . . . . . . . . . . . Terminals 2 | . 1 . 1 . . . . . . . . . . . . . Track 1 | . . . 1 . . . . . . . . . . . . . Operators 1 | . 1 . . . . . . . . . . . . . . . Fabricators . | . . . . . . . . . . . . . . . . . Repair Stations . | . . . . . . . . . . . . . . . . . Recycling Units . | . . . . . . . . . . . . . . . . . Scanalyzers . | . . . . . . . . . . . . . . . . . Garrison Access . | . . . . . . . . . . . . . . . . . Data Cores Recovered 3 | . . . . . . . . . 1 . . . . . 1 1 Used . | . . . . . . . . . . . . . . . . . Hacking Detections 20 | . 2 . 3 . . . 1 2 . 3 2 . 1 1 3 2 Full Trace Events 3 | . . . 1 . . . . . . 1 . . . . 1 . Feedback Events . | . . . . . . . . . . . . . . . . . Feedback Blocked . | . . . . . . . . . . . . . . . . . Robot Schematics Acquired . | . . . . . . . . . . . . . . . . . Robots Built . | . . . . . . . . . . . . . . . . . Matter . | . . . . . . . . . . . . . . . . . Time . | . . . . . . . . . . . . . . . . . Total Robot Build Rating . | . . . . . . . . . . . . . . . . . Part Schematics Acquired . | . . . . . . . . . . . . . . . . . Parts Built . | . . . . . . . . . . . . . . . . . Matter . | . . . . . . . . . . . . . . . . . Time . | . . . . . . . . . . . . . . . . . Total Part Build Rating . | . . . . . . . . . . . . . . . . . Parts Repaired . | . . . . . . . . . . . . . . . . . Time . | . . . . . . . . . . . . . . . . . Parts Recycled . | . . . . . . . . . . . . . . . . . Recycled Matter . | . . . . . . . . . . . . . . . . . Retrieved Matter . | . . . . . . . . . . . . . . . . . Retrieved Components . | . . . . . . . . . . . . . . . . . Parts Scanalyzed . | . . . . . . . . . . . . . . . . . Part Schematics Acquired . | . . . . . . . . . . . . . . . . . Parts Damaged . | . . . . . . . . . . . . . . . . . Bothacking | -11 -10 -10 -9 -9 -9 -8 -8 -7 -6 -6 -6 -6 -5 -4 -3 -3 ------------ Run | Scr Mat Min Mat Min Exi Min Mat Fac Fac Ext Cet Arc Fac Fac Res Qua Used RIF Installer . | . . . . . . . . . . . . . . . . . Robots Hacked . | . . . . . . . . . . . . . . . . . Non-combat . | . . . . . . . . . . . . . . . . . Combat . | . . . . . . . . . . . . . . . . . Robot Hacks Applied . | . . . . . . . . . . . . . . . . . Relay Couplers Released 2 | . . . . . . . . . . . . . 1 . . 1 Machine Destruction 2 | . . . . . . . . . . . . . 1 . . 1 Robots Rewired 9 | . . . . . . . . 1 . 8 . . . . . . Allies Hacked . | . . . . . . . . . . . . . . . . . Hacks Repelled . | . . . . . . . . . . . . . . . . . Allies | -11 -10 -10 -9 -9 -9 -8 -8 -7 -6 -6 -6 -6 -5 -4 -3 -3 -------- Run | Scr Mat Min Mat Min Exi Min Mat Fac Fac Ext Cet Arc Fac Fac Res Qua Total Allies 39 | . . . . 4 . . . 1 . 20 5 3 . . . 6 Largest Group 12 | . . . . 4 3 3 3 1 . 12 12 10 . . . 6 Highest-Rated Group 784 | . . . . 71 40 40 40 32 . 448 784 753 . . . 87 Highest-Rated Ally 156 | . . . . 31 16 16 16 32 . 156 156 122 . . . 15 Total Orders . | . . . . . . . . . . . . . . . . . Ally Attacks 437 | . . . . 23 . 12 5 4 . 215 90 57 . . . 31 Total Damage 10069 | . . . . 293 . 131 57 195 . 4162 2414 2153 . . . 664 Kills 78 | . . . . 6 . 3 2 3 . 34 15 12 . . . 3 Allies Corrupted 1 | . . . . . . . . . . . . . . . . 1 Allies Melted . | . . . . . . . . . . . . . . . . . Intel | -11 -10 -10 -9 -9 -9 -8 -8 -7 -6 -6 -6 -6 -5 -4 -3 -3 ------- Run | Scr Mat Min Mat Min Exi Min Mat Fac Fac Ext Cet Arc Fac Fac Res Qua Robot Analysis Total 2 | . 1 . . . . . . . . . . . . . . 1 Derelict Logs Recovered 3 | . . 1 . 2 . . . . . . . . . . . . Drone Launches . | . . . . . . . . . . . . . . . . . Drone Recoveries . | . . . . . . . . . . . . . . . . . Exploration | -11 -10 -10 -9 -9 -9 -8 -8 -7 -6 -6 -6 -6 -5 -4 -3 -3 ------------- Run | Scr Mat Min Mat Min Exi Min Mat Fac Fac Ext Cet Arc Fac Fac Res Qua Turns Passed 11578 | 89 285 1102 785 1470 408 300 238 474 102 1360 557 227 1237 990 773 1181 Spaces Moved 7423 | 69 251 949 445 867 469 359 236 759 159 806 268 135 491 438 311 411 Core 19 | 3 . . 4 . . . . . . 12 . . . . . . Treads 2417 | . . . . . . . . . . 363 268 135 491 438 311 411 Legs 2191 | 66 106 517 441 867 194 . . . . . . . . . . . Wheels 615 | . 145 432 . . . . . . . 38 . . . . . . Hover . | . . . . . . . . . . . . . . . . . Flight 2181 | . . . . . 275 359 236 759 159 393 . . . . . . Fastest Speed 50 | 50 80 80 120 120 50 50 50 50 50 50 160 160 160 160 170 170 Average Speed 112 | 116 96 101 135 126 78 50 50 50 50 107 160 160 160 163 170 170 Slowest Speed 400 | 120 120 150 300 150 120 50 50 50 50 400 160 160 160 170 170 170 Overloaded Moves . | . . . . . . . . . . . . . . . . . Propulsion Burnouts . | . . . . . . . . . . . . . . . . . Robots Hopped 8 | . . . . . . . . 4 1 3 . . . . . . Cave-ins Triggered 4 | . . . . 1 . . . . . . . 1 . . . 2 Exploration Rate (%) 51 | 4 40 100 53 99 76 71 29 30 5 84 79 99 20 13 11 54 Regions Visited 16 Branch Regions 8 Pre-discovered Areas 1 | . . 1 . . . . . . . . . . . . . . Known Exits Taken 13 | . . . 1 1 1 1 1 1 1 1 1 1 1 1 1 . Unknown Exits Taken 3 | 1 1 1 . . . . . . . . . . . . . . Scrap Searched 4 | . . 2 . 1 . 1 . . . . . . . . . . Spaces Dug 210 | . . . . 22 . . . 16 57 56 4 . 36 1 7 11 Terrain Destroyed 988 | . 3 15 40 58 . 33 174 136 94 94 5 . 114 69 55 98 Melee 26 | . . . . 22 . . . . . . 4 . . . . . Projectile 203 | . . . . . . 1 5 6 3 3 1 . 35 20 37 92 AOE 759 | . 3 15 40 36 . 32 169 130 91 91 . . 79 49 18 6 Actions | -11 -10 -10 -9 -9 -9 -8 -8 -7 -6 -6 -6 -6 -5 -4 -3 -3 --------- Run | Scr Mat Min Mat Min Exi Min Mat Fac Fac Ext Cet Arc Fac Fac Res Qua Total 9509 | 75 273 1041 553 1128 508 469 304 804 165 1197 374 140 740 596 435 707 Wait 779 | . . 51 26 145 26 101 40 7 . 208 59 . 61 14 10 31 Move 7393 | 68 250 948 444 866 468 358 235 752 156 799 267 134 490 437 310 411 Hop 6 | . . . . . . . . 2 1 3 . . . . . . Pick Up 15 | 2 2 2 . 1 . . 1 . . 1 . . . 2 1 3 Fast Attach 123 | 5 3 4 12 7 5 . 2 5 1 15 13 . 5 14 9 23 Attach 9 | . . . . . . . . . . 3 1 . . 2 . 3 Detach 5 | . . . . . . . . . . 3 1 . . 1 . . Swap 34 | . . 2 6 7 . . . . . 4 5 2 3 . 2 3 Drop 93 | . 5 4 7 2 9 . 2 4 1 8 15 . 3 9 6 18 Fire 548 | . 10 21 36 38 . 3 17 15 6 60 7 2 108 62 65 98 Melee 57 | . . . . 36 . . . . . 13 6 2 . . . . Ram . | . . . . . . . . . . . . . . . . . Kick 2 | . . 1 . 1 . . . . . . . . . . . . Crush 5 | . . . . . . . . . . . . . . 1 4 . Escape Stasis 8 | . . . . . . . . 2 . . . . . . . 6 Rewire 47 | . . . . . . . . 9 . 36 . . . . . 2 Trap 2 | . . . . 2 . . . . . . . . . . . . Miscellaneous 383 | . 3 8 22 23 . 7 7 8 . 44 . . 70 54 28 109 Route ------- -11/Scrapyard -10/Materials (discovered 2 exits: *Mat / [*Min]) -10/Mines (discovered 2 exits: *Mat x2) -9/Materials (discovered 4 exits: *Mat x2 / *Min x2) -9/Mines (discovered 3 exits: *Mat x2 / *Exi) -9/Exiles -8/Mines -8/Materials (discovered 2 exits: *Fac / *Sto) -7/Factory -6/Factory -6/Extension (discovered 2 exits: *Fac / *Cet) -6/Cetus (discovered 2 exits: *Fac / *Arc) -6/Archives (discovered 3 exits: *Fac / *Hub x2) -5/Factory -4/Factory -3/Research (discovered 3 exits: Arm / *Qua x2) -3/Quarantine History --------- Turn | Location | Event 1 | -11/Scrapyard | Upgraded with Propulsion slot (x1) 1 | -11/Scrapyard | Upgraded with Utility slot (x1) 1 | -11/Scrapyard | Upgraded with Weapon slot (x1) 11 | -11/Scrapyard | Discovered new exit (range 16) 90 | -11/Scrapyard | Entered Materials 222 | -10/Materials | Discovered new exit (range 16) 309 | -10/Materials | Build established: Mutant 329 | -10/Materials | Discovered new exit (range 15) 375 | -10/Materials | Entered Mines 448 | -10/Mines | Learned location of Zion (-6) 601 | -10/Mines | Met a Derelict testing a Signal Generator 609 | -10/Mines | Found Signal Generator 734 | -10/Mines | Discovered new exit (range 14) 780 | -10/Mines | Reached level 2 1079 | -10/Mines | Build established: Scavenger-Mutant 1292 | -10/Mines | Discovered new exit (range 6) 1477 | -10/Mines | Entered Materials 1479 | -9/Materials | Reached level 3 1675 | -9/Materials | Reached level 4 1741 | -9/Materials | Destroyed 9 combat bots 1782 | -9/Materials | Reached level 5 1807 | -9/Materials | Upgraded with Power slot (x1) 1807 | -9/Materials | Upgraded with Propulsion slot (x1) 1807 | -9/Materials | Upgraded with Utility slot (x1) 1823 | -9/Materials | Discovered new exit (range 16) 1893 | -9/Materials | Identified exit to Mines 2150 | -9/Materials | Discovered new exit (range 11) 2262 | -9/Materials | Entered Mines 2264 | -9/Mines | Met a Derelict bent on vengeance 2264 | -9/Mines | Reached level 6 2402 | -9/Mines | Learned Materials emergency access door positions 2450 | -9/Mines | A weapon hastily lodged in a ceiling crevice suddenly fell to the ground 2593 | -9/Mines | Excavation squad dispatched 2593 | -9/Mines | A large section of the Mines collapsed 2763 | -9/Mines | Crushed by falling debris 2763 | -9/Mines | Core integrity fell below 50% 2828 | -9/Mines | Found a hidden stash of uninstalled traps 2843 | -9/Mines | Excavation squad dispatched 3000 | -9/Mines | Discovered new exit (range 11) 3018 | -9/Mines | Identified exit to Materials 3050 | -9/Mines | Reached level 7 3112 | -9/Mines | Assisted by bots powering up and referring to "LRC-V3" 3146 | -9/Mines | Received a Mining Laser from a helpful Derelict 3146 | -9/Mines | Discovered exit to Materials (range 16) 3633 | -9/Mines | Reached level 8 3641 | -9/Mines | Upgraded with Utility slot (x2) 3690 | -9/Mines | Upgraded with Power slot (x1) 3690 | -9/Mines | Upgraded with Utility slot (x1) 3701 | -9/Mines | Upgraded with Propulsion slot (x1) 3724 | -9/Mines | Deemed a non-threat by the Exiles lab entrance 3725 | -9/Mines | Discovered new exit (range 5) 3728 | -9/Mines | Identified exit to Exiles 3732 | -9/Mines | Entered Exiles 3732 | -9/Exiles | Accompanied by 3 allies 3761 | -9/Exiles | Met 8R-AWN 3783 | -9/Exiles | Met EX-HEX 3818 | -9/Exiles | Met EX-BIN 3923 | -9/Exiles | Aligned with FarCom system 3924 | -9/Exiles | Given EX-Vault access code 3953 | -9/Exiles | Opened EX-Vault 3960 | -9/Exiles | Found Prototype Processor 3960 | -9/Exiles | Identified Modified TNC 3965 | -9/Exiles | Found Prototype Energy Cannon 3965 | -9/Exiles | Identified YOLO Cannon 3972 | -9/Exiles | Found Prototype Flight Unit 3972 | -9/Exiles | Identified Flying Fortress v7 3984 | -9/Exiles | Warned to stay clear of 0b10 Research branches 4007 | -9/Exiles | Met EX-DEC 4063 | -9/Exiles | Visited The Gauntlet 4108 | -9/Exiles | Discovered new exit (range 14) 4114 | -9/Exiles | Identified exit to Mines 4140 | -9/Exiles | Stole two prototypes: Flying Fortress v7, YOLO Cannon 4140 | -9/Exiles | Entered Mines 4140 | -8/Mines | Accompanied by 3 allies 4257 | -8/Mines | Reached level 9 4412 | -8/Mines | Discovered exit to Materials (range 12) 4431 | -8/Mines | Build established: Scavenger-Scout 4440 | -8/Mines | Entered Materials 4440 | -8/Materials | Accompanied by 3 allies 4441 | -8/Materials | Identified exit to Storage 4442 | -8/Materials | Reached level 10 4540 | -8/Materials | Reached level 11 4648 | -8/Materials | Discovered new exit (range 7) 4650 | -8/Materials | Identified exit to Factory 4678 | -8/Materials | Entered Factory 4680 | -7/Factory | FarCom data flow suspended 4680 | -7/Factory | Reached level 12 4879 | -7/Factory | Reached level 13 4970 | -7/Factory | Build established: Scavenger-Mutant 5017 | -7/Factory | Reached level 14 5050 | -7/Factory | Upgraded with Utility slot (x1) 5125 | -7/Factory | Discovered new exit (range 14) 5151 | -7/Factory | Identified exit to Factory 5152 | -7/Factory | Entered another Factory area 5154 | -6/Factory | Reached level 15 5227 | -6/Factory | Discovered new exit (range 8) 5253 | -6/Factory | Identified exit to Extension 5254 | -6/Factory | Entered Extension 5256 | -6/Extension | Reached level 16 5294 | -6/Extension | Rescued a captive Derelict 5317 | -6/Extension | Rescued a captive Derelict 5318 | -6/Extension | Rescued a captive Derelict 5409 | -6/Extension | Rescued a captive Derelict 5446 | -6/Extension | Rescued a captive Derelict 5447 | -6/Extension | Rescued a captive Derelict 5452 | -6/Extension | Rescued A7 5480 | -6/Extension | Build established: Generator-Mutant 5646 | -6/Extension | Core integrity fell below 50% 5647 | -6/Extension | Reached level 17 5676 | -6/Extension | Lost 4 parts (1p1n1u1w) 5754 | -6/Extension | Disrupted transfer network 5788 | -6/Extension | Spotted B-75 Beast 5804 | -6/Extension | Allies destroyed B-75 Beast 5805 | -6/Extension | Spotted B-75 Beast 5814 | -6/Extension | Destroyed B-75 Beast 5826 | -6/Extension | Reached level 18 5844 | -6/Extension | P-60 Hacker assimilated allied T6-615(g) 6009 | -6/Extension | Build established: Scavenger-Mutant 6044 | -6/Extension | Rescued a captive Derelict 6111 | -6/Extension | Rescued a captive Derelict 6113 | -6/Extension | Rescued a captive Derelict 6252 | -6/Extension | Reached level 19 6478 | -6/Extension | Rescued a captive Derelict 6478 | -6/Extension | Rescued a captive Derelict 6534 | -6/Extension | Discovered new exit (range 10) 6535 | -6/Extension | Discovered new exit (range 6) 6591 | -6/Extension | Identified exit to Cetus 6614 | -6/Extension | Entered Cetus 6614 | -6/Cetus | Accompanied by 10 allies 6616 | -6/Cetus | Upgraded with Weapon slot (x1) 6619 | -6/Cetus | Acquired a Cetus Manufacturing Module code from A7 6638 | -6/Cetus | Spotted Cetus Guard 6638 | -6/Cetus | Spotted Cetus Guard 6641 | -6/Cetus | Spotted Cetus Guard 6645 | -6/Cetus | Spotted Cetus Guard 6646 | -6/Cetus | Allies destroyed Cetus Guard 6651 | -6/Cetus | Allies destroyed Cetus Guard 6659 | -6/Cetus | Allies destroyed Cetus Guard 6672 | -6/Cetus | Allies destroyed Cetus Guard 6766 | -6/Cetus | Started Cetus Manufacturing Module 6773 | -6/Cetus | Reached level 20 6783 | -6/Cetus | Escorted A7 to Cetus Mainframe 6791 | -6/Cetus | Manufactured an Enhanced Grunt 6816 | -6/Cetus | Manufactured an Enhanced Grunt 6841 | -6/Cetus | Manufactured an Enhanced Grunt 6866 | -6/Cetus | Manufactured an Enhanced Grunt 6891 | -6/Cetus | Manufactured an Enhanced Grunt 7002 | -6/Cetus | Discovered new exit (range 15) 7037 | -6/Cetus | Spotted Cetus Guard 7037 | -6/Cetus | Spotted Cetus Guard 7041 | -6/Cetus | Spotted Cetus Guard 7041 | -6/Cetus | Spotted Cetus Guard 7048 | -6/Cetus | Discovered new exit (range 15) 7052 | -6/Cetus | Allies destroyed Cetus Guard 7054 | -6/Cetus | Destroyed Cetus Guard 7054 | -6/Cetus | Allies destroyed Cetus Guard 7057 | -6/Cetus | Extracted ID and sensor layout for unrecognized location from A7's data core 7061 | -6/Cetus | Allies destroyed Cetus Guard 7070 | -6/Cetus | Met Revision 17 7104 | -6/Cetus | Found Prototype Device 7104 | -6/Cetus | Identified Exp. Thermal Shield 7160 | -6/Cetus | Identified exit to Archives 7171 | -6/Cetus | Entered Archives 7171 | -6/Archives | Accompanied by 7 allies 7191 | -6/Archives | Met Zhirov 7197 | -6/Archives | Reinforcements dispatched to Archives 7200 | -6/Archives | Unable to access archive contents 7205 | -6/Archives | Discovered new exit (range 15) 7218 | -6/Archives | Read partially decrypted archive contents 7224 | -6/Archives | Discovered new exit (range 15) 7242 | -6/Archives | Reinforcements dispatched to Archives 7244 | -6/Archives | Zhirov warped through subspace 7245 | -6/Archives | Unable to access archive contents 7262 | -6/Archives | Zhirov detonated Archives 7278 | -6/Archives | Identified exit to Hub_04(d) 7289 | -6/Archives | Crushed by falling debris 7363 | -6/Archives | Discovered new exit (range 16) 7386 | -6/Archives | Identified exit to Factory 7398 | -6/Archives | Entered Factory 7399 | -5/Factory | Core integrity fell below 50% 7400 | -5/Factory | Reached level 21 7703 | -5/Factory | Build established: Scavenger-Gunner 7785 | -5/Factory | Reached level 22 7785 | -5/Factory | Garrison activated, responded to threat 7840 | -5/Factory | Spotted B-75 Beast 7942 | -5/Factory | Destroyed B-75 Beast 7998 | -5/Factory | First assault squad dispatched 8085 | -5/Factory | Reached level 23 8173 | -5/Factory | Destroyed 13 combat bots 8473 | -5/Factory | Destroyed 8 combat bots 8558 | -5/Factory | Discovered new exit (range 12) 8634 | -5/Factory | Identified exit to Factory 8635 | -5/Factory | Entered another Factory area 8637 | -4/Factory | Reached level 24 8655 | -4/Factory | Upgraded with Utility slot (x1) 9076 | -4/Factory | Spotted B-86 Titan 9091 | -4/Factory | Destroyed B-86 Titan 9177 | -4/Factory | First assault squad dispatched 9224 | -4/Factory | Reached level 25 9366 | -4/Factory | Discovered new exit (range 16) 9472 | -4/Factory | Identified exit to Research 9625 | -4/Factory | Entered Research 9627 | -3/Research | Reached level 26 9795 | -3/Research | Identified exit to Armory 9795 | -3/Research | Identified exit to Quarantine 9951 | -3/Research | Reached level 27 9987 | -3/Research | Build established: Generator-Gunner 10125 | -3/Research | First assault squad dispatched 10328 | -3/Research | Core integrity fell below 50% 10364 | -3/Research | Core integrity fell below 20% 10393 | -3/Research | Destroyed 10 combat bots 10398 | -3/Research | Entered Quarantine 10400 | -3/Quarantine | Reached level 28 10402 | -3/Quarantine | Upgraded with Weapon slot (x1) 10519 | -3/Quarantine | Crushed by falling debris 10617 | -3/Quarantine | Scanned by Researcher 10636 | -3/Quarantine | Cryocooling Duct disabled 10651 | -3/Quarantine | Ambient heat levels rising (+20) 10651 | -3/Quarantine | Non-combat units ordered to evacuate 10688 | -3/Quarantine | Destroyed 7 combat bots 10770 | -3/Quarantine | Reached level 29 10817 | -3/Quarantine | Found Alien Artifact 10817 | -3/Quarantine | Identified Terrabomb 10817 | -3/Quarantine | Used Terrabomb 10898 | -3/Quarantine | First assault squad dispatched 10898 | -3/Quarantine | Found Alien Artifact 10898 | -3/Quarantine | Identified Subatomic Replicator 10972 | -3/Quarantine | Found Prototype Device 10972 | -3/Quarantine | Identified EM Dispersion Field 11033 | -3/Quarantine | Found Alien Artifact 11033 | -3/Quarantine | Identified Core Reset Matrix 11033 | -3/Quarantine | Used Core Reset Matrix 11037 | -3/Quarantine | Detected hypermatrix surge 11037 | -3/Quarantine | Emitted hypermatrix ping 11037 | -3/Quarantine | Sensed 1 artifact in vicinity 11042 | -3/Quarantine | Assembled emerged from beneath the floor 11281 | -3/Quarantine | Crushed by falling debris 11288 | -3/Quarantine | Reached level 30 11306 | -3/Quarantine | High security lockdown imminent 11333 | -3/Quarantine | Destroyed 10 combat bots 11386 | -3/Quarantine | High security lockdown engaged 11454 | -3/Quarantine | Met incapacitated Sigix Warrior 11454 | -3/Quarantine | Lockdown squad dispatched 11473 | -3/Quarantine | Used Subatomic Replicator to replicate Sigix Containment Pod 11569 | -3/Quarantine | Spotted Lightning 11575 | -3/Quarantine | Spotted Lightning 11576 | -3/Quarantine | Spotted Lightning 11579 | -3/Quarantine | Destroyed by Lightning with EMDS Last Messages --------------- 11551_ B-74 Champion destroyed. 11553_ Power failure, Quantum Reactor shutdown. 11553_ Power failure, Particle Reactor shutdown. 11554_ G-67 Veteran destroyed. 11557_ Sigix Lab disabled. 11559_ Protomatter-68 decays. 11560_ Destroyed Unknown Energy Gun. 11560_ G-67 Veteran suffers critical hit. 11560_ Adv. Heat Sink melted. 11560_ G-67 Veteran destroyed. 11567_ Dropped Nova Cannon. 11568_ Acquired 45 matter. 11573_ Acquired Adv. Heat Sink. 11576_ Penetrated by EMDS Slug. 11577_ Critical hit. 11577_ Hvy. Siege Treads destroyed. 11579_ Penetrated by EMDS Slug. [Achievement: 30k Club] [Achievement: 40k Club] [Achievement: Torch] Map ----- +----------------------------------------------------+ | | | | | | | | | | | | | | | | | | | | | | | | | | | | | | | | | ???????????????????????????????????? | | ???????????????????????????????????? | | ???????????????????????????????????? | | ???##########?????#####????????????? | | ??#"""""""""#?????# ##???????????? | | ??#"""""""""#?##### ; #??????????? | | ??#""" =!"%*##!=;;#= #######??????? | | ??#"" """|!* !!%!*%= hm #??????? | | ??#"" "%&]*[%%==%%!* h #??????? | | ??#"" """%!@%|!=*[= "" %%" +??????? | | ??#""" ==!!!#!%### """" ###??????? | | ??#"""""" ""##[#?# """%" #????????? | | ??#"""""""""#?#=## """" ########?? | | ???##########??# # """ !#=! ### | | ????????????????#" """ ! *%[ ! | | ?????????????????# =!!![ | | ?????????????????# |=! ! | | ?????????????????## " ###" ### | | ??????????????????# " ""#?########?? | | ??????????????????# "" "#????????### | | ??????????????????######????????## | | ????????????????????????????????# | | ????????????????????????????????# | | ????????????????????????????????## " | | ?????????????????????????????????### | | ??????????????????????????????###### | | ??????????????????????????????# | | ??????????????????????????????# #### | | ???????????????????????????????????# | | ??????????????????????????????????#" | | ??????????????????????????????????# | | ??????????????????????????????????# | | ??????????????????????????????????## | | ???????????????????????????????????? | +----------------------------------------------------+ Best States ------------- Heat Dissipation 183 Energy Generation 81 Energy Capacity 1630 Matter Stores 300 Matter Capacity 300 Sight Range 16 Robot Scan Range 24 Terrain Scan Density 10 Additional Mass Support 12 Base Temperature (-) 200 Armor Coverage 150 Resistance: KI 20 Resistance: TH 20 Resistance: EX 20 Weapon Cycling 15 Phase Shifting 5 Evasion (%) 60 Recoil Reduction 4 Particle Charging 25 Offensive Hacking 25 Defensive Hacking 10 Item Schematics ----------------- None Robot Schematics ------------------ None Fabricated ------------ Nothing Alien Tech Used ----------------- Terrabomb Subatomic Replicator Core Reset Matrix Achievements -------------- 30k Club 40k Club More Power To You Preemptive Strike Torch Challenges ------------ None RPGLIKE | -11 -10 -10 -9 -9 -9 -8 -8 -7 -6 -6 -6 -6 -5 -4 -3 -3 --------- Run | Scr Mat Min Mat Min Exi Min Mat Fac Fac Ext Cet Arc Fac Fac Res Qua Levels Raised 29 | . . 1 3 3 . 1 2 3 1 4 1 . 3 2 2 3 XP Earned 47284 | 3000 645 1675 4699 3599 243 1333 3418 4241 2166 5827 1343 748 3852 2900 3769 3826 XP Spent 44500 | 2250 . . 2100 7555 . 1600 2225 4000 2660 . 5450 . 5130 5450 960 5120 Upgrades 108 | 5 . . 3 20 . 4 5 5 10 . 17 . 17 5 4 13 Power Slot 2 | . . . 1 1 . . . . . . . . . . . . Propulsion Slot 3 | 1 . . 1 1 . . . . . . . . . . . . Utility Slot 7 | 1 . . 1 3 . . . 1 . . . . . 1 . . Weapon Slot 3 | 1 . . . . . . . . . . 1 . . . . 1 Core Integrity 30 | . . . . 8 . . . . . . 10 . 2 . 4 6 Heat Dissipation 20 | . . . . . . . . . 3 . . . 11 . . 6 Energy Generation 4 | . . . . . . . 1 . . . . . . 3 . . Energy Storage 4 | . . . . 2 . . 2 . . . . . . . . . Inventory Capacity 3 | 2 . . . . . . . . . . . . . 1 . . Sensor Range 4 | . . . . 4 . . . . . . . . . . . . Ranged Accuracy 4 | . . . . . . 2 1 . . . . . 1 . . . Hack Attack % 5 | . . . . . . . . 4 . . . . 1 . . . Hack Defense % 2 | . . . . . . . . . . . . . 2 . . . KI Resistance % 4 | . . . . . . . . . 2 . 2 . . . . . TH Resistance % 4 | . . . . . . . . . 2 . 2 . . . . . EX Resistance % 4 | . . . . . . . . . 2 . 2 . . . . . TH Damage % 4 | . . . . . . 2 1 . 1 . . . . . . . EX Damage % 1 | . . . . 1 . . . . . . . . . . . . Protomatter Created 5310 | . 59 90 196 225 . 31 153 106 . 265 83 . 1389 603 534 1576 Integrity Restored 8584 | . 49 162 443 507 . 156 168 192 . 966 . . 1601 1242 635 2463 Core 8424 | . 49 162 443 507 . 156 168 192 . 966 . . 1601 1242 475 2463 Parts 160 | . . . . . . . . . . . . . . . 160 . Protomatter Decayed 3399 | . 16 108 37 161 . 1 46 42 . 869 534 58 718 108 94 607 Game ------ Seed GreatLauncherLoader Manual? 0 Play Time 02:22:43 Cumulative 182.9 hours Start 2019.12.22 @ 08:02:30 End 2019.12.23 @ 12:57:12 Sessions 3 Manual Loads 0 Difficulty Rogue Special Mode Winter2019/RPGLIKE Game No. 104 Rogue 104 Adventurer 0 Explorer 0 Win Type - Total 7 Types 6/0/1/0/0/0/0 Lore% 63 Gallery% 73 Achievement% 56 Wizard Run 0 Options --------- ASCII 0 Keyboard 0 Movement Mouse Keybinds 0 Fullscreen 1 Font 18/SmallcapsGlow Map View 76x50 Tactical HUD 1 Map Filters NONE Filters NONE Steam 1 RUN: 16d513e1-a233-447d-99fc-8f29cef0a2e8